[Event "Bijnor Open 2024"]
[Site "Bijnor"]
[Date "2024.03.21"]
[Round "9.2"]
[White "Neelash Saha"]
[Black "Mahindrakar Indrajeet"]
[Result "1/2-1/2"]
[ECO "A57"]
[WhiteElo "2463"]
[BlackElo "2136"]
[Annotator "TA"]
[PlyCount "89"]
[EventDate "2024.03.17"]
[EventCountry "IND"]
[SourceTitle "playchess.com"]
[Source "ChessBase"]
[SourceQuality "1"]
[TimeControl "5400+30"]

{[%evp 18,89,52,54,50,47,50,0,20,18,34,0,42,25,37,24,19,33,18,0,0,0,0,0,0,0,0,0,68,-36,-43,-54,-47,-84,0,0,0,-55,-35,-31,-29,-110,-114,-116,-116,-111,-113,-114,-118,-104,-72,-177,0,-125,-118,-128,-12,-31,-14,-77,-96,-421,-435,-407,-86,-95,-129,-160,-80,-191,-147,-231,-230,-216]} 1. d4 {[%emt 0:00:03]} Nf6 {[%emt 0:01:54]} 2. c4 {[%emt 0:00:05]} c5 {[%emt 0:06:40]} 3. d5 {[%emt 0:00:08]} b5 {[%emt 0:00:05]} 4. Qc2 {[%emt 0:01:29]} bxc4 {[%emt 0:02:15]} 5. e4 {[%emt 0:00:05]} d6 {[%emt 0:01:06]} 6. Bxc4 {[%emt 0:00:23]} g6 {[%emt 0:00:29]} 7. Nf3 {[%emt 0:00:41]} Bg7 {[%emt 0:01:07]} 8. O-O {[%emt 0:00:21]} O-O {[%emt 0:00:40]} 9. h3 {[%emt 0:00:06]} Nbd7 {[%emt 0:00:50]} 10. Nc3 {[%emt 0:01:30]} Nb6 {[%emt 0:02:21]} 11. Bb5 {[%emt 0:01:52]} Bd7 {[%emt 0:05:07]} 12. Be3 {[%emt 0:02:30]} Bxb5 {[%emt 0:11:30] The position is equal.} 13. Nxb5 {[%emt 0:00:06]} a6 {[%emt 0:00:21]} 14. Na3 {[%emt 0:00:39]} Nfd7 {[%emt 0:01:16]} 15. Rad1 {[%emt 0:01:50]} Qc7 {[%emt 0:10:56]} 16. Rfe1 {[%emt 0:02:50]} Qb7 {[%emt 0:01:07]} 17. Bg5 {[%emt 0:00:47]} Ne5 {[%emt 0:01:34]} 18. Nd2 {[%emt 0:03:37]} f5 {[%emt 0:10:09]} 19. exf5 {[%emt 0:05:48]} (19. f4 $5 Nf7 $8 20. Nac4 Nxc4 21. Nxc4 $11) 19... Rxf5 {[%emt 0:06:12]} 20. f4 {[%emt 0:00:19]} Nxd5 {[%emt 0:02:31]} 21. fxe5 {[%emt 0:08:00] And now Nf3 would win.} Rxg5 {[%emt 0:00:32]} 22. Nf3 {[%emt 0:00:05]} Rf5 {[%emt 0:29:13]} (22... Rxe5 $11 23. Nxe5 Bxe5) 23. exd6 {[%emt 0:02:10]} (23. Qe4 $1 $14 Bxe5 (23... e6 $2 24. exd6 Re8 25. Nc4 $18) 24. Qxd5+ (24. Rxd5 Rf4 $14) 24... Qxd5 25. Rxd5 Bd4+ 26. Rxd4 (26. Nxd4 Rxd5 27. Ne6 Rc8 $11) 26... cxd4 27. Nxd4 (27. Rxe7 d3 $14)) 23... exd6 $15 {[%emt 0:01:12][%cal Od5f4]} (23... Qxb2 $2 24. Qe4 (24. Qxc5 Nf4 $17) 24... Bd4+ 25. Nxd4 cxd4 26. Rxd4 $18) 24. Nc4 {[%emt 0:00:57]} Rd8 {[%emt 0:02:35]} 25. Re6 {[%emt 0:06:01][%cal Oc2e4] [#]} Rxf3 {[%emt 0:00:01]} 26. gxf3 $11 {[%emt 0:00:34][%cal Oc2e4] Strongly threatening Qe4!} Bd4+ {[%emt 0:00:41]} 27. Kh2 {[%emt 0:12:37]} (27. Rxd4 $1 $11 cxd4 28. Qe4) 27... Qf7 {[%emt 0:00:11]} 28. Qe4 {[%emt 0:01:42]} (28. Nxd6 $2 Qxe6 29. Ne4 Ne3 30. Rxd4 Qe5+ (30... cxd4 $2 31. Qc7 $19) (30... Rxd4 $2 31. Qxc5 Qc4 32. Qxc4+ Rxc4 33. Nc3 $19) (30... Nxc2 $2 31. Rxd8+ Kg7 32. Kg1 $19) 31. Kg1 cxd4 $19 (31... Rxd4 $2 32. Qxc5 Rxe4 33. Qxe5 $19) (31... Qxd4 $2 32. Qc1 $19)) 28... Nf4 $36 {[%emt 0:00:33][%mdl 2048] Black has the initiative.} 29. Rxd6 {[%emt 0:05:59]} (29. Nxd6 $2 Qxe6 30. Qxe6+ Nxe6 $19) (29. Rxd4 $1 $11 {keeps the balance.} cxd4 (29... Nxe6 30. Rxd6 Rxd6 31. Nxd6 $11) (29... Qxe6 30. Qxe6+ Nxe6 31. Rxd6 $11) 30. Rxd6) 29... Re8 $17 {[%emt 0:00:18]} 30. R1xd4 {[%emt 0:00:18][%cal Od6d8] Rd8! is the strong threat.} Rxe4 {[%emt 0:01:12]} 31. Rxe4 {[%emt 0:00:03]} Qf5 $1 {[%emt 0:00:10]} 32. Kg3 {[%emt 0:01:08]} (32. Rxa6 $2 Qxh3+ 33. Kg1 Qg2#) (32. Rd8+ $2 Kg7 33. Kg1 Qxh3 $19 (33... Nxh3+ $2 34. Kg2 $19) (33... Qg5+ $2 34. Kf1 $19)) 32... Qg5+ {[%emt 0:01:06]} (32... Nxh3 $2 {too greedy.} 33. Rxa6 Ng5 34. Ra8+ Kg7 35. Ra7+ Nf7 36. Ne5 Qg5+ 37. Kf2 Qd2+ 38. Re2 (38. Kg3 Qg5+ 39. Kh3 Qh6+ 40. Kg2 Qd2+ 41. Kf1 h5 $18) 38... Qd4+ 39. Kf1 $18 (39. Kg2 Qd1 $18)) 33. Kf2 {[%emt 0:00:11]} Nxh3+ {[%emt 0:00:23]} 34. Ke2 {[%emt 0:00:05]} (34. Ke1 $17 {was the only chance.}) 34... Ng1+ $2 {[%emt 0:00:37]} (34... Qg2+ $19 35. Ke3 h5) 35. Kd3 {[%emt 0:04:23]} (35. Kf2 $11) 35... Nxf3 {[%emt 0:00:28]} 36. Ne3 {[%emt 0:01:38][%cal Od6d5] [#] Repels Qf5} c4+ {[%emt 0:00:32]} 37. Nxc4 $11 {[%emt 0:00:37][%cal Od3c3]} Qf5 {[%emt 0:00:19]} 38. Ke3 {[%emt 0:02:17]} (38. Ne3 $1 $11 Ne1+ 39. Kd4) 38... Ng5 $17 {[%emt 0:00:12]} 39. Re5 {[%emt 0:01:32][%mdl 8192]} (39. Rd8+ $17 Kg7 40. Re7+ Kh6 41. Rd6) 39... Qh3+ $19 {[%emt 0:00:41]} 40. Ke2 {[%emt 0:04:03]} Qg4+ {[%emt 0:00:23]} (40... Qf3+ $19 41. Kd2 Ne4+ 42. Rxe4 Qxe4 43. Rd8+ Kg7 44. Rd7+ Kf6 45. Rd6+ Kg5) 41. Kd3 $17 {[%emt 0:00:06] [#]} Nf7 $1 {[%emt 0:00:55][%csl LRd6,LRe5]} 42. Re8+ {[%emt 0:00:52]} Kg7 {[%emt 0:00:01]} 43. Rd4 {[%emt 0:00:18]} (43. Re7 $17 {keeps fighting.} Qf5+ 44. Kc3) 43... Qf5+ $19 {[%emt 0:00:43]} 44. Kc3 {[%emt 0:00:45]} (44. Rde4 $17) 44... h5 {[%emt 0:00:30]} 45. a4 {[%emt 0:31:30] Weighted Error Value: White=0.47/Black=0.38.  Loses game:     	White=1     	---        Missed win:     	---       	Black=2      Mistake:       	White=8     	Black=3      Inaccurate:     	White=3     	Black=3      OK:         	White=11    	Black=11     Best:        	White=3     	Black=5      Strong:       	---       	Black=2} 1/2-1/2

[Event "Bijnor Open 2024"]
[Site "Bijnor"]
[Date "2024.03.21"]
[Round "9.3"]
[White "Balkishan, A.."]
[Black "Dutta, Joydeep"]
[Result "1-0"]
[ECO "D38"]
[WhiteElo "2108"]
[BlackElo "2041"]
[Annotator "RC"]
[PlyCount "181"]
[EventDate "2024.03.17"]
[EventCountry "IND"]
[SourceTitle "playchess.com"]
[Source "ChessBase"]
[SourceQuality "1"]
[TimeControl "5400+30"]

1. d4 {[%emt 0:02:08]} d5 {[%emt 0:08:18]} 2. c4 {[%emt 0:00:11]} e6 {[%emt 0:00:10]} 3. Nc3 {[%emt 0:00:38]} Bb4 {[%emt 0:00:15]} 4. Nf3 {[%emt 0:02:35]} Nf6 {[%emt 0:00:08]} 5. Bg5 {[%emt 0:00:03]} Nbd7 {[%emt 0:00:07]} 6. e3 {[%emt 0:03:30]} c5 {[%emt 0:00:20]} 7. cxd5 {[%emt 0:12:36]} exd5 {[%emt 0:03:12]} 8. Bb5 {[%emt 0:00:19]} Qa5 {[%emt 0:04:39]} 9. Bxd7+ {[%emt 0:00:08]} Nxd7 {[%emt 0:01:13]} 10. O-O {[%emt 0:01:09]} c4 {[%emt 0:16:11]} 11. e4 {[%emt 0:09:30]} Nb6 {[%emt 0:10:29]} 12. exd5 {[%emt 0:05:10]} O-O {[%emt 0:01:46]} 13. Nd2 {[%emt 0:06:48]} f6 {[%emt 0:03:26]} 14. Bh4 {[%emt 0:06:04]} Bxc3 {[%emt 0:00:36]} 15. bxc3 {[%emt 0:00:09]} Qxd5 {[%emt 0:00:34]} 16. Re1 {[%emt 0:03:35]} Bf5 {[%emt 0:04:39]} 17. Qc1 {[%emt 0:04:02]} Qa5 {[%emt 0:07:38]} 18. Bg3 {[%emt 0:00:10]} Rf7 {[%emt 0:04:27]} 19. Re3 {[%emt 0:04:05]} Qa4 {[%emt 0:02:41]} 20. Bd6 {[%emt 0:03:10]} Nd5 {[%emt 0:00:27]} 21. Re1 {[%emt 0:03:44]} Qa6 {[%emt 0:07:47]} 22. Bg3 {[%emt 0:00:41]} Rc8 {[%emt 0:02:24]} 23. f3 {[%emt 0:01:08]} Qa5 {[%emt 0:01:16]} 24. Ne4 {[%emt 0:00:23]} Bxe4 {[%emt 0:00:06]} 25. fxe4 {[%emt 0:00:02]} Nxc3 {[%emt 0:00:30]} 26. Qd2 {[%emt 0:03:26]} b6 {[%emt 0:02:35]} 27. Rac1 {[%emt 0:06:07]} Nb5 {[%emt 0:03:52]} 28. Qxa5 {[%emt 0:00:13]} bxa5 {[%emt 0:00:02]} 29. d5 {[%emt 0:00:49]} Rd7 {[%emt 0:03:50]} 30. Re3 {[%emt 0:03:12]} a4 {[%emt 0:00:22]} 31. Re2 {[%emt 0:01:18]} c3 {[%emt 0:00:45]} 32. Rec2 {[%emt 0:01:48]} Nd4 {[%emt 0:02:28]} 33. Rf2 {[%emt 0:00:02]} Nb5 {[%emt 0:02:22]} 34. Kf1 {[%emt 0:03:01]} Rc4 {[%emt 0:00:58]} 35. Re2 {[%emt 0:01:15]} Re7 {[%emt 0:00:46]} 36. d6 {[%emt 0:00:56]} Rd7 {[%emt 0:00:05]} 37. e5 {[%emt 0:00:06]} fxe5 {[%emt 0:00:32]} 38. Bxe5 {[%emt 0:03:06]} Nxd6 {[%emt 0:00:59]} 39. Rxc3 {[%emt 0:00:18]} Rxc3 {[%emt 0:00:32]} 40. Bxc3 {[%emt 0:00:03]} Nb5 {[%emt 0:00:03]} 41. Bb4 {[%emt 0:01:18]} Kf7 {[%emt 0:00:48]} 42. Re5 {[%emt 0:00:57]} Rb7 {[%emt 0:01:59]} 43. Re4 {[%emt 0:00:53]} g6 {[%emt 0:00:33]} 44. Ke2 {[%emt 0:01:00]} Rd7 {[%emt 0:00:23]} 45. Ke3 {[%emt 0:03:36]} a6 {[%emt 0:01:43]} 46. g4 {[%emt 0:00:50]} Nd6 {[%emt 0:01:54]} 47. Rd4 {[%emt 0:00:52]} Ke6 {[%emt 0:00:04]} 48. Be1 {[%emt 0:01:18]} h5 {[%emt 0:00:57]} 49. Rxa4 {[%emt 0:00:25]} hxg4 {[%emt 0:02:07]} 50. Rxa6 {[%emt 0:00:14]} Kf7 {[%emt 0:00:48]} 51. Kf4 {[%emt 0:00:36]} Nf5 {[%emt 0:00:27]} 52. Kxg4 {[%emt 0:01:19]} Rd4+ {[%emt 0:00:11]} 53. Kg5 {[%emt 0:00:55]} Ne7 {[%emt 0:00:14]} 54. Rf6+ {[%emt 0:01:03]} Ke8 {[%emt 0:00:17]} 55. Ra6 {[%emt 0:01:16]} Kf7 {[%emt 0:00:06]} 56. Bg3 {[%emt 0:00:41]} Rd5+ {[%emt 0:00:16]} 57. Kf4 {[%emt 0:00:02]} Nf5 {[%emt 0:00:39]} 58. Be1 {[%emt 0:00:41]} Rd4+ {[%emt 0:01:09]} 59. Kf3 {[%emt 0:00:29]} Nh4+ {[%emt 0:00:29]} 60. Kf2 {[%emt 0:00:37]} Rc4 {[%emt 0:00:35]} 61. Rd6 {[%emt 0:01:43]} Nf5 {[%emt 0:01:02]} 62. Rd2 {[%emt 0:00:12]} Ra4 {[%emt 0:00:31]} 63. Ke2 {[%emt 0:01:08]} g5 {[%emt 0:00:27]} 64. Kd3 {[%emt 0:00:47]} Kg6 {[%emt 0:00:44]} 65. Kc3 {[%emt 0:00:21]} Re4 {[%emt 0:00:18]} 66. Bf2 {[%emt 0:00:21]} Rf4 {[%emt 0:00:27]} 67. Kb3 {[%emt 0:00:31]} Rf3+ {[%emt 0:00:39]} 68. Kb4 {[%emt 0:00:02]} Rh3 {[%emt 0:00:16]} 69. Bc5 {[%emt 0:00:11]} g4 {[%emt 0:00:46]} 70. a4 {[%emt 0:00:09]} Nh4 {[%emt 0:00:23]} 71. Bd6 {[%emt 0:03:55]} Nf3 {[%emt 0:00:07]} 72. Ra2 {[%emt 0:00:00]} Nd4 {[%emt 0:00:31]} 73. a5 {[%emt 0:00:00]} Nc6+ {[%emt 0:00:17]} 74. Kb5 {[%emt 0:00:00]} Nxa5 {[%emt 0:00:48]} 75. Kxa5 {[%emt 0:00:00]} Rd3 {[%emt 0:00:22]} 76. Bg3 {[%emt 0:00:00]} Rb3 {[%emt 0:00:10]} 77. Rc2 {[%emt 0:00:00]} Rb1 {[%emt 0:00:59]} 78. Rc4 {[%emt 0:00:00]} Kf5 {[%emt 0:00:08]} 79. Rf4+ {[%emt 0:00:00]} Kg5 {[%emt 0:00:05]} 80. Rb4 {[%emt 0:00:00]} Rd1 {[%emt 0:00:51]} 81. Rb5+ {[%emt 0:00:01]} Kg6 {[%emt 0:00:16]} 82. Kb4 {[%emt 0:00:01]} Rf1 {[%emt 0:00:58]} 83. Kc4 {[%emt 0:00:07]} Rf3 {[%emt 0:00:57]} 84. Kd4 {[%emt 0:00:03]} Rf7 {[%emt 0:00:28]} 85. Ke4 {[%emt 0:00:03]} Rf1 {[%emt 0:00:08]} 86. Rb8 {[%emt 0:00:35]} Rf7 {[%emt 0:00:27]} 87. Rg8+ {[%emt 0:00:19]} Kh5 {[%emt 0:00:04]} 88. Ke5 {[%emt 0:01:10]} Ra7 {[%emt 0:00:54]} 89. Kf6 {[%emt 0:00:47]} Ra6+ {[%emt 0:00:18]} 90. Kf5 {[%emt 0:00:12]} Rg6 {[%emt 0:00:29]} 91. Rh8+ {[%emt 0:00:07]} 1-0

[Event "Bijnor Open 2024"]
[Site "Bijnor"]
[Date "2024.03.21"]
[Round "9.4"]
[White "Daksh Goyal"]
[Black "Laxman, R.R."]
[Result "0-1"]
[ECO "C54"]
[WhiteElo "1926"]
[BlackElo "2331"]
[Annotator "TA"]
[PlyCount "134"]
[EventDate "2024.03.17"]
[EventCountry "IND"]
[SourceTitle "playchess.com"]
[Source "ChessBase"]
[SourceQuality "1"]
[TimeControl "5400+30"]

{[%evp 19,134,8,5,0,7,0,0,0,79,76,71,76,75,74,108,76,84,85,97,115,107,107,130,144,145,138,163,129,160,164,147,124,157,136,135,129,155,149,156,144,154,152,202,210,255,260,228,183,202,143,145,93,126,125,128,135,152,95,149,151,158,145,173,160,188,182,183,162,218,206,200,140,138,95,75,10,55,47,33,52,53,55,55,54,51,42,50,0,0,0,0,-31,0,0,0,-8,0,0,0,0,0,0,0,-8,-18,-137,-129,-139,-134,-343,-340,-1047,-1018,-1034,-1040,-1062,-1023]} 1. e4 {[%emt 0:05:46]} e5 {[%emt 0:00:07]} 2. Nf3 {[%emt 0:00:31]} Nc6 {[%emt 0:00:05]} 3. Bc4 {[%emt 0:00:29]} Bc5 {[%emt 0:00:06]} 4. c3 {[%emt 0:00:33]} Nf6 {[%emt 0:00:05]} 5. d3 {[%emt 0:00:10]} d6 {[%emt 0:00:50]} 6. O-O {[%emt 0:02:27]} O-O {[%emt 0:00:25]} 7. a4 {[%emt 0:04:03] 7.Re1 ist die kritische Fortsetzung.} a5 {[%emt 0:00:10]} 8. Nbd2 {[%emt 0:10:18] C54: Italienische Partie (Hauptvariante).} h6 {[%emt 0:01:08]} 9. Re1 {[%emt 0:04:01]} Be6 {[%emt 0:01:18]} 10. Qb3 {[%emt 0:05:42]} Qd7 {[%emt 0:01:49]} 11. Nf1 {[%emt 0:06:22]} Ne7 {[%emt 0:03:10]} 12. Be3 $146 {[%emt 0:05:35]} ({Predecessor:} 12. d4 exd4 13. cxd4 Bxc4 14. Qxc4 Bb4 15. Bd2 Bxd2 16. N1xd2 d5 17. exd5 Nexd5 18. Ne5 {½-½ Srija,S (2174)-Sardana,R (2428) Goa op 2nd Taleigao 2019 (10)}) 12... Bxe3 {[%emt 0:00:17]} 13. Nxe3 {[%emt 0:01:43]} c6 {[%emt 0:00:20]} (13... Ng6 $11 {hält das Gleichgewicht.}) 14. Bxe6 $16 {[%emt 0:08:06]} Qxe6 {[%emt 0:00:22]} 15. Qxe6 {[%emt 0:02:59]} (15. Qxb7 $2 Rfb8 16. Qc7 Ne8 $19 (16... Rxb2 17. d4 $17) (16... Rxb2 17. d4 $17)) 15... fxe6 {[%emt 0:00:02]} 16. Nc4 {[%emt 0:03:28]} Ne8 {[%emt 0:00:10]} 17. Ra3 {[%emt 0:08:48]} Ng6 {[%emt 0:01:44]} 18. Nfd2 {[%emt 0:08:19]} b5 {[%emt 0:05:26]} 19. axb5 {[%emt 0:04:03]} cxb5 {[%emt 0:00:34]} 20. Rxa5 {[%emt 0:01:02]} Rxa5 {[%emt 0:00:22]} 21. Nxa5 {[%emt 0:00:02]} Nf4 {[%emt 0:00:43] [#]} 22. Re3 $1 {[%emt 0:01:24]} Nf6 {[%emt 0:00:15]} 23. f3 {[%emt 0:02:17]} Nd7 {[%emt 0:01:00]} 24. g3 {[%emt 0:01:06]} Ng6 {[%emt 0:00:22]} 25. Ndb3 {[%emt 0:03:34]} Ra8 {[%emt 0:00:23]} 26. h4 {[%emt 0:01:30]} Ne7 {[%emt 0:00:26]} 27. Re2 {[%emt 0:02:25]} Nc8 {[%emt 0:01:04]} 28. Kf2 {[%emt 0:00:39]} Kf7 {[%emt 0:00:09]} 29. Nc6 {[%emt 0:03:14]} Ncb6 {[%emt 0:00:21]} 30. f4 {[%emt 0:01:53]} exf4 {[%emt 0:00:09]} (30... Nb8 $16 31. Nxb8 Rxb8 32. fxe5 dxe5) 31. gxf4 $18 {[%emt 0:00:01]} Nc5 {[%emt 0:01:04]} 32. Nxc5 {[%emt 0:01:37]} dxc5 {[%emt 0:00:02]} 33. d4 {[%emt 0:01:43]} c4 {[%emt 0:00:14]} 34. Nb4 {[%emt 0:01:08]} Ra1 {[%emt 0:00:06]} 35. Nc2 {[%emt 0:00:11]} (35. Re1 $142 Rxe1 36. Kxe1) 35... Rh1 {[%emt 0:00:33]} 36. Kg3 {[%emt 0:00:31]} Rg1+ {[%emt 0:00:18]} 37. Rg2 {[%emt 0:00:37]} Rd1 {[%emt 0:00:06]} 38. Kf3 {[%emt 0:00:35]} (38. Ne3 $142 Rd3 39. Kf3) 38... Rd3+ {[%emt 0:01:42]} ({Vorzuziehen ist} 38... Rh1) 39. Ne3 $16 {[%emt 0:00:28]} b4 {[%emt 0:00:01]} 40. cxb4 {[%emt 0:00:38]} Rxd4 {[%emt 0:00:02]} 41. Rc2 {[%emt 0:00:25]} h5 {[%emt 0:00:29]} 42. Rc3 {[%emt 0:00:26]} g6 {[%emt 0:00:18]} 43. Ra3 {[%emt 0:00:28]} Nd7 {[%emt 0:02:06]} (43... Ke7 {war nötig.} 44. Ra6 Nc8) 44. Ra7 {[%emt 0:00:26]} Ke8 {[%emt 0:00:01]} 45. Rc7 {[%emt 0:00:26]} Rd3 {[%emt 0:00:01]} 46. Rxc4 {[%emt 0:00:28]} Rb3 {[%emt 0:00:02]} 47. Rd4 {[%emt 0:00:50]} (47. Rc3 $16 Rxb4 48. b3) 47... Nf6 {[%emt 0:00:35]} 48. Ke2 {[%emt 0:00:26]} Rxb2+ {[%emt 0:00:03]} 49. Kd3 {[%emt 0:00:16]} Rh2 {[%emt 0:00:30]} 50. e5 {[%emt 0:00:46]} Nd7 $1 {[%emt 0:00:01]} 51. Rd6 {[%emt 0:00:26]} Ke7 {[%emt 0:00:07]} 52. Nc2 {[%emt 0:00:26]} Rh3+ {[%emt 0:00:31]} 53. Ke4 {[%emt 0:00:37]} (53. Kd2 $14 Nf6 54. Ra6 (54. exf6+ $2 Kxd6 55. Ne3 Rxh4 $17)) 53... Nf6+ $1 $11 {[%emt 0:00:29]} 54. Kd4 {[%emt 0:00:05]} Rxh4 {[%emt 0:00:11]} 55. Kd3 {[%emt 0:00:54]} Nd5 {[%emt 0:00:36]} (55... Rxf4 56. Nd4 Nd7 57. Nc6+ (57. Nxe6 $2 Nxe5+ 58. Ke3 Rf3+ 59. Ke4 Kxd6 $19) (57. Rxe6+ Kf7 $17) 57... Ke8 58. Rxe6+ Kf8 59. Ke3 $11 (59. Rxg6 Rxb4 60. Ke3 Rg4 $11)) 56. Nd4 {[%emt 0:00:09]} Nxf4+ {[%emt 0:00:12]} 57. Kc2 {[%emt 0:00:44]} Rh2+ {[%emt 0:00:13]} 58. Kb3 {[%emt 0:00:13]} Rh3+ {[%emt 0:01:02]} 59. Kc4 {[%emt 0:00:15]} Rh1 {[%emt 0:00:16]} 60. b5 {[%emt 0:00:57]} Rc1+ {[%emt 0:05:19]} 61. Kb3 {[%emt 0:00:04]} h4 {[%emt 0:00:34]} 62. b6 {[%emt 0:00:56] [#]} (62. Nc6+ $11 Kf8 63. Kb2) 62... h3 $1 $17 {[%emt 0:00:06]} 63. Nc6+ {[%emt 0:00:39]} Kf8 {[%emt 0:00:22]} 64. Rd8+ $2 {[%emt 0:00:37]} (64. Kb2 $17 h2 65. b7) 64... Kg7 $19 {[%emt 0:00:06]} 65. Rd7+ $2 {[%emt 0:00:14]} (65. Nb4 h2 66. b7) 65... Kh6 $19 {[%emt 0:00:14]} 66. b7 {[%emt 0:00:13]} h2 {[%emt 0:02:01]} (66... Rxc6 $2 {geht unter.} 67. b8=Q (67. b8=R $2 Rc1 $19) 67... Kg5 68. Rd1 $18) 67. b8=Q {[%emt 0:00:39]} Rb1+ {[%emt 0:00:02]} (67... h1=R $2 {zu gefräßig.} 68. Qh8+ Kg5 69. Qf6+ Kg4 70. Rd4 Rb1+ 71. Ka4 $18) ({Weniger gut wäre} 67... h1=Q 68. Qh8+ Kg5 69. Qxh1 Rxh1 70. Nd4 $17) 0-1